bitfinex/quotes_BTCUSD_20250127
["timestamp","ask_amount","ask_price","bid_price","bid_amount"]
[1737995704418,0.149209,100530.0,100520.0,0.03094043]
[1737995704610,0.286555,100550.0,100530.0,0.149201]
[1737995704811,0.286555,100550.0,100530.0,0.15020362]
[1737995704812,0.149194,100540.0,100530.0,0.15020362]
[1737995704966,0.149179,100550.0,100540.0,0.348117]
[1737995705171,0.199176,100570.0,100560.0,0.149164]
[1737995705368,0.14945,100570.0,100560.0,0.01185018]
[1737995705767,0.14945,100570.0,100560.0,0.16101418]
[1737995705964,0.14945,100570.0,100560.0,0.01185018]
[1737995706350,0.348318,100570.0,100550.0,0.34906433]
[1737995706556,0.149447,100570.0,100560.0,0.226264]
[1737995706920,0.000298,100570.0,100560.0,0.32361129]
[1737995707122,0.000298,100570.0,100560.0,0.53261129]
[1737995707319,0.000298,100570.0,100560.0,0.79548531]
[1737995707521,0.000298,100570.0,100560.0,0.81548531]
[1737995708155,0.000298,100570.0,100560.0,0.83848531]
[1737995708361,0.000298,100570.0,100560.0,0.79548531]
[1737995708534,0.000298,100570.0,100560.0,0.52261129]
[1737995709196,0.001298,100570.0,100560.0,0.53761129]
[1737995709403,0.001298,100570.0,100560.0,0.82348531]
[1737995709669,0.001298,100570.0,100560.0,0.84348531]
[1737995709859,0.00029821,100580.0,100570.0,0.299149]
[1737995710075,0.00029821,100580.0,100570.0,0.49599089]
[1737995710492,0.14943321,100580.0,100570.0,0.0994946]
[1737995710704,0.00029821,100580.0,100570.0,0.15014319]
[1737995710961,0.00029821,100580.0,100570.0,0.24749048]
[1737995711167,0.14943321,100580.0,100570.0,0.149149]
[1737995711369,0.00029821,100580.0,100570.0,0.15014321]
[1737995711606,0.00129821,100580.0,100570.0,0.2484905]
[1737995711808,0.15043321,100580.0,100570.0,0.24749629]
[1737995712165,0.14943321,100580.0,100570.0,0.24649629]
[1737995712367,0.34828521,100580.0,100560.0,0.425133]
[1737995712528,0.35028521,100580.0,100570.0,0.01]
[1737995712721,0.71050652,100580.0,100570.0,0.01]
[1737995712928,0.70950652,100580.0,100570.0,0.001]
[1737995713337,0.71050652,100580.0,100570.0,0.01]
[1737995714350,0.4476325,100580.0,100570.0,0.01]
[1737995714987,0.19915121,100580.0,100560.0,0.348046]
[1737995715191,0.14915,100570.0,100560.0,0.00099436]
[1737995715392,0.00029821,100580.0,100570.0,0.149149]
[1737995715597,0.00029821,100580.0,100570.0,0.15014315]
[1737995715792,0.00029821,100580.0,100570.0,0.149149]
[1737995716022,0.00129821,100580.0,100570.0,0.149149]
[1737995716236,0.01029821,100580.0,100570.0,0.24749629]
[1737995716638,0.00929821,100580.0,100570.0,0.39749629]
[1737995717060,0.15843321,100580.0,100570.0,0.001]
[1737995717327,0.2557805,100580.0,100570.0,0.001]
[1737995717507,0.51865452,100580.0,100570.0,0.001]
[1737995718074,0.149179,100550.0,100540.0,0.35002255]
[1737995718296,0.149179,100550.0,100540.0,0.34906108]
[1737995718490,0.546966,100560.0,100540.0,0.49824708]
[1737995718926,0.149179,100550.0,100540.0,0.00014708]
[1737995719119,0.149179,100550.0,100540.0,0.00114156]
[1737995719318,0.546968,100560.0,100540.0,0.14934108]
[1737995719627,0.149179,100550.0,100540.0,0.15033554]
[1737995719832,0.149179,100550.0,100540.0,0.00914708]
[1737995720040,0.547964,100560.0,100540.0,0.15034108]
[1737995720247,0.001,100560.0,100550.0,0.149179]
[1737995720442,0.001,100560.0,100550.0,0.15017334]
[1737995720648,0.001,100560.0,100550.0,0.1919692]
[1737995720850,0.001,100560.0,100550.0,0.15017334]
[1737995721059,0.001,100560.0,100550.0,0.39752063]
[1737995721288,0.34829421,100580.0,100550.0,0.778875]
[1737995721289,0.14915,100570.0,100550.0,0.778875]
[1737995721502,0.546893,100570.0,100550.0,0.429973]
[1737995721908,0.348016,100570.0,100550.0,0.628868]
[1737995722117,0.54715621,100580.0,100560.0,0.348043]
[1737995722324,0.34829021,100580.0,100560.0,0.54791133]
[1737995722536,0.34829021,100580.0,100570.0,0.149149]
[1737995722537,0.00029821,100580.0,100570.0,0.149149]
[1737995722817,0.14943321,100580.0,100570.0,0.15014319]
[1737995723068,0.14943321,100580.0,100550.0,0.290795]
[1737995723069,0.150164,100560.0,100550.0,0.290795]
[1737995723285,0.001,100560.0,100550.0,0.38814229]
[1737995723508,0.00040341,100560.0,100550.0,0.38814229]
[1737995723928,0.14956741,100560.0,100550.0,0.01]
[1737995724140,0.58440796,100560.0,100550.0,0.01]
[1737995724353,0.73440796,100560.0,100550.0,0.01]
[1737995724571,0.84844311,100560.0,100550.0,1e-06]
[1737995724785,0.2033312,100550.0,100540.0,0.00014708]
[1737995725022,0.81333448,100550.0,100540.0,8e-08]
[1737995725263,0.91068177,100550.0,100540.0,8e-08]
[1737995725474,0.73230031,100550.0,100540.0,8e-08]
[1737995725883,0.55930031,100550.0,100540.0,8e-08]
[1737995726352,0.76180272,100550.0,100540.0,8e-08]
[1737995726565,0.82095584,100550.0,100540.0,8e-08]
[1737995726779,0.79095586,100550.0,100540.0,8e-08]
[1737995726990,0.75980274,100550.0,100540.0,8e-08]
[1737995727218,0.58680274,100550.0,100540.0,8e-08]
[1737995727644,0.59580274,100550.0,100540.0,0.00100008]
[1737995728059,0.61880274,100550.0,100540.0,0.00100008]
[1737995728271,0.80995584,100550.0,100540.0,0.00100008]
[1737995728481,0.79995586,100550.0,100540.0,0.00100008]
[1737995728718,0.74580274,100550.0,100540.0,0.00100008]
[1737995728918,0.29289852,100550.0,100540.0,0.00100008]
[1737995729119,0.80311983,100550.0,100540.0,0.00100008]
[1737995729233,0.84611983,100550.0,100540.0,8e-08]
[1737995729431,0.85611981,100550.0,100540.0,8e-08]
[1737995729643,0.93655492,100550.0,100540.0,8e-08]
[1737995729853,1.01575492,100550.0,100540.0,8e-08]
[1737995730064,0.149253,100500.0,100490.0,0.00096147]
[1737995730274,0.24660029,100500.0,100490.0,0.00096147]
[1737995730485,0.348311,100490.0,100470.0,0.34935515]
[1737995730682,0.348311,100490.0,100470.0,0.64575444]
[1737995730887,0.348311,100490.0,100480.0,0.149283]
[1737995731093,0.149283,100480.0,100470.0,0.24664529]
[1737995731290,0.00014815,100480.0,100470.0,0.44569829]
[1737995731503,0.00014815,100480.0,100470.0,0.60110276]
[1737995732240,0.14943115,100480.0,100470.0,0.00540447]
[1737995732447,0.14943115,100480.0,100470.0,0.15470247]
[1737995732669,0.14943115,100480.0,100470.0,0.00540447]
[1737995732882,0.14943115,100480.0,100470.0,0.15470247]
[1737995733092,0.15043115,100480.0,100470.0,0.15470247]
[1737995733294,0.00114815,100480.0,100470.0,0.25304499]
[1737995733506,0.00114815,100480.0,100470.0,0.25204976]
[1737995733745,0.00114815,100480.0,100470.0,0.15470247]
[1737995733746,0.15043115,100480.0,100470.0,0.15470247]
[1737995734130,0.00214815,100480.0,100470.0,0.15569767]
[1737995734408,0.00114815,100480.0,100470.0,0.15569767]
[1737995734843,0.00214815,100480.0,100470.0,0.15569767]
[1737995735228,0.00114815,100480.0,100470.0,0.15569767]
[1737995735653,0.00214815,100480.0,100470.0,0.15569767]
[1737995735804,0.15143115,100480.0,100470.0,0.15569767]
[1737995736207,0.15043115,100480.0,100470.0,0.15569767]
[1737995736421,0.00214815,100480.0,100470.0,0.15569767]
[1737995738324,0.00214815,100480.0,100470.0,0.40304496]
[1737995738534,0.00214815,100480.0,100470.0,0.40204976]
[1737995739183,0.00214815,100480.0,100470.0,0.43504976]
[1737995739393,0.00214815,100480.0,100470.0,0.71792378]
[1737995739607,0.00214815,100480.0,100470.0,0.79962378]
[1737995739828,0.00214815,100480.0,100470.0,0.48374976]
[1737995740282,0.00014815,100480.0,100470.0,0.48374976]
[1737995740489,0.00114815,100480.0,100470.0,0.48374976]
[1737995740695,0.00214815,100480.0,100470.0,0.23640247]
[1737995740902,0.15143115,100480.0,100470.0,0.00540447]
[1737995741125,0.24877844,100480.0,100470.0,0.00540447]
[1737995741409,0.51165246,100480.0,100470.0,0.00540447]
[1737995741615,0.149313,100460.0,100450.0,0.000142]
[1737995742036,0.149313,100460.0,100450.0,0.00634675]
[1737995742229,0.149313,100460.0,100450.0,0.000142]
[1737995742440,0.149313,100460.0,100450.0,0.00634675]
[1737995742600,0.149313,100460.0,100450.0,0.000142]
[1737995742796,0.149313,100460.0,100450.0,0.00634675]
[1737995742956,0.149313,100460.0,100450.0,0.000142]
[1737995743160,0.149313,100460.0,100450.0,0.00634675]
[1737995743363,0.149313,100460.0,100450.0,0.000142]
[1737995743573,0.24666029,100460.0,100450.0,0.00634675]
[1737995743774,0.50953431,100460.0,100450.0,0.000142]
[1737995743996,0.51653431,100460.0,100450.0,0.00734675]
[1737995744211,0.51653431,100460.0,100450.0,0.001142]
[1737995744212,0.25366029,100460.0,100450.0,0.001142]
[1737995744417,0.156313,100460.0,100450.0,0.0072791]
[1737995744626,0.156313,100460.0,100450.0,0.00107435]
[1737995744828,0.165313,100460.0,100450.0,0.00739415]
[1737995745032,0.26266029,100460.0,100450.0,0.00107435]
[1737995745279,0.26266029,100460.0,100450.0,0.00739415]
[1737995745451,0.26266029,100460.0,100450.0,0.00107435]
[1737995745649,0.26266029,100460.0,100450.0,0.00639415]
[1737995745650,0.25566029,100460.0,100450.0,0.00639415]
[1737995745858,0.51853431,100460.0,100450.0,7.435e-05]
[1737995746057,0.52153431,100460.0,100450.0,0.00639415]
[1737995746263,0.6526012,100460.0,100450.0,7.435e-05]
[1737995746470,0.9493543,100460.0,100450.0,8.6e-07]
[1737995746669,0.149342,100440.0,100430.0,0.0001414]
[1737995746896,0.50956331,100440.0,100430.0,0.0001414]
[1737995747448,0.50956331,100440.0,100430.0,0.0058614]
[1737995747651,0.50956331,100440.0,100430.0,0.0001414]
[1737995747881,0.50956331,100440.0,100430.0,0.0058614]
[1737995748088,0.50956331,100440.0,100430.0,0.0001414]
[1737995748089,0.50971135,100440.0,100430.0,0.0001414]
[1737995748295,0.002393,100400.0,100360.0,0.14534131]
[1737995748497,0.14876891,100370.0,100360.0,0.08821241]
[1737995749573,0.09734729,100390.0,100360.0,0.08821241]
[1737995749773,0.550236,100400.0,100380.0,0.348669]
[1737995749908,0.149417,100390.0,100380.0,0.149427]
[1737995750106,0.149417,100390.0,100370.0,0.44604129]
[1737995750310,0.149432,100380.0,100370.0,0.149443]
[1737995750532,0.81076502,100390.0,100370.0,0.149443]
[1737995750700,0.149432,100380.0,100370.0,0.17545379]
[1737995750896,0.41230602,100380.0,100370.0,0.02501462]
[1737995751186,0.149447,100370.0,100360.0,0.08870657]
[1737995751367,0.41232102,100370.0,100360.0,0.08870657]
[1737995751738,0.41232102,100370.0,100360.0,0.00063556]
[1737995751944,0.398514,100380.0,100360.0,0.15009656]
[1737995752212,0.41730302,100390.0,100370.0,0.149447]
[1737995752417,0.24677929,100380.0,100370.0,0.02583876]
[1737995752610,0.149447,100370.0,100360.0,0.00063556]
[1737995754087,0.149447,100370.0,100360.0,0.15923251]
[1737995754237,0.348699,100380.0,100360.0,0.4558598]
[1737995754443,0.348699,100380.0,100360.0,0.6551318]
[1737995754676,0.149447,100370.0,100360.0,0.15877518]
[1737995754871,0.149447,100370.0,100360.0,0.00877518]
[1737995755260,0.150447,100370.0,100360.0,0.00877518]
[1737995755611,0.001,100370.0,100360.0,0.48617977]
[1737995755739,0.001,100370.0,100360.0,0.58438347]
[1737995755940,0.001,100370.0,100360.0,0.68407257]
[1737995756145,0.001,100370.0,100360.0,0.68507257]
[1737995756146,0.002,100370.0,100360.0,0.68507257]
[1737995756343,0.002393,100400.0,100390.0,0.299417]
[1737995756604,0.002393,100400.0,100390.0,0.40305667]
[1737995758223,0.002393,100400.0,100390.0,0.00629238]
[1737995758450,0.41466902,100400.0,100390.0,0.00629238]
[1737995758731,0.002393,100400.0,100390.0,0.15670541]
[1737995759347,0.151795,100400.0,100390.0,0.15670541]
[1737995759546,0.41566902,100400.0,100390.0,0.01529238]
[1737995759772,0.004393,100400.0,100390.0,0.01029238]
[1737995759975,0.0043415,100400.0,100390.0,0.01029238]
[1737995760179,0.41661752,100400.0,100390.0,0.01929238]
[1737995760409,0.41561752,100400.0,100390.0,0.01029238]
[1737995760587,0.0023415,100400.0,100390.0,0.15670543]
[1737995760787,0.0023415,100400.0,100390.0,0.40405272]
[1737995760991,0.0033415,100400.0,100390.0,0.40705667]
[1737995761210,0.0033415,100400.0,100390.0,0.48945667]
[1737995761621,0.0023415,100400.0,100390.0,0.58355667]
[1737995761825,0.0033415,100400.0,100390.0,0.53855667]
[1737995762271,0.0023415,100400.0,100390.0,0.53055667]
[1737995762474,0.0023415,100400.0,100390.0,0.54055667]
[1737995762690,0.0023415,100400.0,100390.0,0.58355667]
[1737995762903,0.06926827,100460.0,100390.0,0.58355667]
[1737995762904,0.16949427,100460.0,100440.0,0.348461]
[1737995763101,0.16949427,100460.0,100450.0,0.149328]
[1737995763102,0.16948127,100460.0,100450.0,0.149328]
[1737995763223,0.03019934,100460.0,100450.0,0.1565265]
[1737995763576,0.03019934,100460.0,100450.0,0.0071985]
[1737995763577,0.53973365,100460.0,100450.0,0.0071985]
[1737995763796,0.70973365,100460.0,100450.0,0.0071985]
[1737995764028,0.348554,100420.0,100400.0,0.348594]
[1737995764230,0.348554,100420.0,100400.0,0.00096182]
[1737995764231,0.149387,100410.0,100400.0,0.00096182]
[1737995764461,0.24673429,100410.0,100400.0,0.00096182]
[1737995764869,0.149387,100410.0,100400.0,0.15036382]
[1737995765079,0.74691,100420.0,100400.0,0.15039793]
[1737995765254,0.348576,100410.0,100400.0,0.00049416]
[1737995765891,0.349576,100410.0,100400.0,0.15889616]
[1737995766094,0.349576,100410.0,100400.0,0.40624345]
[1737995766095,0.001,100410.0,100400.0,0.40624345]
[1737995766298,0.001,100410.0,100400.0,0.66911747]
[1737995766472,0.001,100410.0,100400.0,0.50591365]
[1737995766919,0.001,100410.0,100400.0,0.76878767]
[1737995767449,0.001,100410.0,100400.0,0.94908767]
[1737995767859,0.002,100410.0,100400.0,0.89908767]
[1737995768072,0.002,100410.0,100400.0,0.63621365]
[1737995768287,0.002,100410.0,100400.0,0.89908767]
[1737995768664,0.001,100410.0,100400.0,0.89008767]
[1737995769008,0.002,100410.0,100400.0,0.92908767]
[1737995769212,0.00029758,100420.0,100410.0,0.182387]
[1737995769421,0.00029758,100420.0,100410.0,0.53360385]
[1737995769685,0.14966958,100420.0,100410.0,0.15]
[1737995769910,0.34885758,100420.0,100400.0,0.34796301]
[1737995770114,0.34877732,100420.0,100410.0,0.15038279]
[1737995770338,0.00021732,100420.0,100410.0,0.15038279]
[1737995770509,0.00021732,100420.0,100410.0,0.6606041]
[1737995770712,0.00121732,100420.0,100410.0,0.66860831]
[1737995770853,0.00121732,100420.0,100410.0,0.308387]
[1737995771055,0.15058932,100420.0,100410.0,0.308387]
[1737995771252,0.15058932,100420.0,100410.0,0.009]
[1737995771460,0.24793661,100420.0,100410.0,0.009]
[1737995771714,0.55591063,100420.0,100410.0,0.009]
[1737995771913,0.51070922,100420.0,100410.0,0.01969062]
[1737995772131,0.15048791,100420.0,100410.0,0.01969062]
[1737995772332,0.15148791,100420.0,100410.0,0.0416489]
[1737995772535,0.15048791,100420.0,100410.0,0.01569062]
[1737995772843,0.15348791,100420.0,100410.0,0.01069062]
[1737995773419,0.2508352,100420.0,100410.0,0.01069062]
[1737995773833,0.15348791,100420.0,100410.0,0.01069062]
[1737995774245,0.00411591,100420.0,100410.0,0.25742491]
[1737995774448,0.15348791,100420.0,100410.0,0.25742491]
[1737995774834,0.149387,100410.0,100400.0,0.00049416]
[1737995775147,0.149387,100410.0,100400.0,0.24823934]
[1737995775357,0.149387,100410.0,100400.0,0.24724345]
[1737995775561,0.35967591,100420.0,100400.0,0.64564145]
[1737995775763,0.149387,100410.0,100400.0,0.14989616]
[1737995775968,0.149387,100410.0,100400.0,0.00949416]
[1737995776177,0.74703191,100420.0,100400.0,0.55828307]
[1737995776380,0.149387,100410.0,100400.0,0.01049007]
[1737995776594,0.149387,100410.0,100400.0,0.00949416]
[1737995776799,0.24673429,100410.0,100400.0,0.00949416]
[1737995777209,0.149387,100410.0,100400.0,0.00949416]
[1737995777843,0.54785191,100420.0,100400.0,0.35809116]
[1737995778050,0.54785191,100420.0,100410.0,0.149387]
[1737995778051,0.34867591,100420.0,100410.0,0.149387]
[1737995778248,0.34867591,100420.0,100410.0,0.00099579]
[1737995778457,0.34867591,100420.0,100410.0,0.15038279]
[1737995778660,0.14950091,100420.0,100410.0,0.15038279]
[1737995779695,0.14950091,100420.0,100410.0,0.24773008]
[1737995779696,0.00311591,100420.0,100410.0,0.24773008]
[1737995779910,0.00311591,100420.0,100410.0,0.24673429]
[1737995780325,0.00311591,100420.0,100410.0,0.25750875]
[1737995780928,0.15248791,100420.0,100410.0,0.25750875]
[1737995781135,0.15248791,100420.0,100410.0,0.01077446]
[1737995782460,0.15248791,100420.0,100410.0,0.01177025]
[1737995782677,0.00311591,100420.0,100410.0,0.40850454]
[1737995782893,0.00311591,100420.0,100410.0,0.48480875]
[1737995783244,0.00311591,100420.0,100410.0,0.50780875]
[1737995783579,0.00311591,100420.0,100410.0,0.48480875]
[1737995784019,0.00311591,100420.0,100410.0,0.50780875]
[1737995784345,0.00311591,100420.0,100410.0,0.60511893]
[1737995784552,0.15248791,100420.0,100410.0,0.11555791]
[1737995784858,0.15248791,100420.0,100410.0,0.0192064]
[1737995784976,0.50970922,100420.0,100410.0,0.01821062]
[1737995785190,0.149387,100410.0,100400.0,0.00063576]
[1737995785389,0.24673429,100410.0,100400.0,0.00063576]
[1737995785632,0.149387,100410.0,100400.0,0.01131206]
[1737995785840,0.24673429,100410.0,100400.0,0.01131206]
[1737995786013,0.50960831,100410.0,100400.0,0.01131206]
[1737995786421,0.50960831,100410.0,100400.0,0.02126454]
[1737995786422,0.51660831,100410.0,100400.0,0.02126454]
[1737995786643,0.43443077,100410.0,100400.0,0.02226454]
[1737995786880,0.156387,100410.0,100400.0,0.02126454]
[1737995787081,0.156387,100410.0,100400.0,0.01926454]
[1737995787283,0.156387,100410.0,100400.0,0.26700972]
[1737995787284,0.007,100410.0,100400.0,0.26700972]
[1737995787491,0.156387,100410.0,100400.0,0.26601383]
[1737995788280,0.007,100410.0,100400.0,0.26601383]
[1737995788482,0.007,100410.0,100400.0,0.26297112]
[1737995788685,0.156387,100410.0,100400.0,0.26297112]
[1737995789029,0.158387,100410.0,100400.0,0.00726935]
[1737995789190,0.52027457,100410.0,100400.0,0.00626935]
[1737995789358,0.41992728,100410.0,100400.0,0.00626935]
[1737995789564,0.42892728,100410.0,100400.0,0.00942327]
[1737995789761,0.164387,100410.0,100400.0,0.00942327]
[1737995789998,0.149387,100410.0,100400.0,0.00842327]
[1737995790216,0.165387,100410.0,100400.0,0.00942327]
[1737995790414,0.016,100410.0,100400.0,0.15882527]
[1737995790614,0.165387,100410.0,100400.0,0.25617256]
[1737995790815,0.54784491,100420.0,100400.0,0.65356856]
[1737995790978,0.006,100410.0,100400.0,0.25617256]
[1737995791336,0.155387,100410.0,100400.0,0.00942327]
[1737995791553,0.164387,100410.0,100400.0,0.01042327]
[1737995792555,0.164387,100410.0,100400.0,0.01141918]
[1737995792785,0.149387,100410.0,100400.0,0.15882118]
[1737995793103,0.149387,100410.0,100400.0,0.00842327]
[1737995793309,0.153387,100410.0,100400.0,0.00842327]
[1737995793514,0.51527457,100410.0,100400.0,0.00842327]
[1737995793934,0.60097455,100410.0,100400.0,0.00842327]
[1737995794149,0.59097457,100410.0,100400.0,0.00842327]
[1737995794357,0.59097457,100410.0,100390.0,0.0001417]
[1737995794358,0.149402,100400.0,100390.0,0.0001417]
[1737995794564,0.149402,100400.0,100390.0,0.0086536]
[1737995794778,0.34907864,100410.0,100390.0,0.3572926]
[1737995794991,0.16188064,100410.0,100400.0,0.001]
[1737995795195,0.16188064,100410.0,100400.0,0.00199587]
[1737995795405,0.16188064,100410.0,100400.0,0.00965611]
[1737995796039,0.15288064,100410.0,100400.0,0.00865611]
[1737995796352,0.15288064,100410.0,100400.0,0.2574013]
[1737995796353,0.01249364,100410.0,100400.0,0.2574013]
[1737995796561,0.01249364,100410.0,100400.0,0.2554054]
[1737995796781,0.00049364,100410.0,100400.0,0.2554054]
[1737995796985,0.00349364,100410.0,100400.0,0.4054054]
[1737995797602,0.15288064,100410.0,100400.0,0.15865611]
[1737995797812,0.15288064,100410.0,100400.0,0.00865611]
[1737995798855,0.51476821,100410.0,100400.0,0.00865611]
[1737995800076,0.55592131,100410.0,100400.0,0.00865611]
[1737995800254,0.51176821,100410.0,100400.0,0.00865611]
[1737995800435,0.52076821,100410.0,100400.0,0.00703011]
[1737995801187,0.52776821,100410.0,100400.0,0.00703011]
[1737995801510,0.52776821,100410.0,100400.0,0.001]
[1737995803282,0.6662686,100410.0,100400.0,0.001]
[1737995803498,0.76486819,100410.0,100400.0,1e-06]
[1737995803708,0.0819,100370.0,100360.0,0.00110322]
[1737995803903,0.149476,100350.0,100340.0,0.00074207]
[1737995804235,0.51136357,100350.0,100340.0,0.00074207]
[1737995804900,0.149491,100340.0,100330.0,0.08963723]
[1737995805154,0.51187161,100340.0,100330.0,0.08867519]
[1737995805574,0.6092189,100340.0,100330.0,0.08788282]
[1737995805803,0.6092189,100340.0,100300.0,0.02789941]
[1737995805804,0.15,100320.0,100300.0,0.02789941]
[1737995806010,0.50972276,100310.0,100300.0,0.02789941]
[1737995806228,0.53960388,100310.0,100300.0,0.02789941]
[1737995806666,0.5687602,100310.0,100300.0,0.02789941]
[1737995806876,0.56684428,100310.0,100300.0,0.02789941]
[1737995807080,0.62819678,100310.0,100300.0,0.02789941]
[1737995807588,0.63719678,100310.0,100300.0,0.02789941]
[1737995807792,0.6271968,100310.0,100300.0,0.02789941]
[1737995807993,0.55101006,100310.0,100300.0,0.02789941]
[1737995808209,0.51872276,100310.0,100300.0,0.02789941]
[1737995808593,0.52872274,100310.0,100300.0,0.02789941]
[1737995809017,0.55872274,100310.0,100300.0,0.02789941]
[1737995809145,0.74327751,100310.0,100300.0,0.02789941]
[1737995809345,0.76947567,100310.0,100300.0,4.1e-07]
[1737995809560,0.74327751,100310.0,100300.0,4.1e-07]
[1737995809765,0.74327751,100310.0,100260.0,0.16822557]
[1737995809766,0.02,100240.0,100220.0,0.0017166]
[1737995809972,0.54915354,100230.0,100220.0,0.0017166]
[1737995810179,0.51154257,100230.0,100220.0,0.0017166]
[1737995810628,0.54815616,100230.0,100220.0,0.0017166]
[1737995810833,0.79056016,100230.0,100220.0,0.0017166]
[1737995810990,0.77007752,100230.0,100220.0,0.0017166]
[1737995811370,0.68154257,100230.0,100220.0,0.00186534]
[1737995811575,0.51154257,100230.0,100220.0,0.0064485]
[1737995811779,0.51154257,100230.0,100220.0,0.00186534]
[1737995811957,0.149648,100240.0,100220.0,0.00186534]
[1737995812158,0.149654,100240.0,100220.0,0.15672133]
[1737995812375,0.349135,100250.0,100230.0,0.1506516]
[1737995812516,0.26454028,100260.0,100230.0,0.09834489]
[1737995812694,0.199455,100280.0,100250.0,0.1995]
[1737995812894,0.149612,100260.0,100240.0,0.35431954]
[1737995813097,0.44640429,100270.0,100260.0,0.00511723]
[1737995813302,0.149611,100260.0,100250.0,0.00513245]
[1737995813517,0.149611,100260.0,100220.0,0.58245622]
[1737995813518,0.199503,100250.0,100220.0,0.58245622]
[1737995813722,0.349114,100260.0,100240.0,0.149637]
[1737995813925,0.39895,100270.0,100250.0,0.149623]
[1737995814198,0.349094,100260.0,100240.0,0.38890419]
[1737995814371,0.61411471,100270.0,100250.0,0.15062247]
[1737995814604,0.00049243,100270.0,100250.0,0.15061747]
[1737995814810,0.149611,100260.0,100250.0,0.06468446]
[1737995815005,0.36188757,100260.0,100220.0,0.58343582]
[1737995815216,0.14964,100240.0,100230.0,0.00099756]
[1737995815416,0.61368928,100250.0,100230.0,0.35018758]
[1737995815634,0.349149,100250.0,100230.0,0.35018758]
[1737995815803,0.53754955,100250.0,100210.0,0.77296174]
[1737995815994,0.53754955,100250.0,100210.0,0.70607055]
[1737995815995,0.41421028,100220.0,100210.0,0.70607055]
[1737995816196,0.51155757,100220.0,100210.0,0.70607055]
[1737995816621,0.14967,100220.0,100210.0,0.70607055]
[1737995816830,0.14961714,100220.0,100210.0,0.70607055]
[1737995817229,0.149658,100230.0,100210.0,1.25002113]
[1737995817439,0.009,100220.0,100210.0,1.10049387]
[1737995817648,0.005,100220.0,100210.0,1.42825237]
[1737995817856,0.00244639,100220.0,100210.0,0.75518182]
[1737995818064,0.00244639,100220.0,100210.0,0.57218182]
[1737995818272,0.00244639,100220.0,100210.0,0.47232332]
[1737995818473,0.15211639,100220.0,100210.0,0.47232332]
[1737995818684,0.00244639,100220.0,100210.0,0.47232332]
[1737995818893,0.00244639,100220.0,100210.0,0.00029054]
[1737995818894,0.36188757,100220.0,100210.0,0.00029054]
[1737995819131,0.51155757,100220.0,100210.0,0.00029054]
[1737995819457,0.51355757,100220.0,100210.0,0.00029054]
[1737995819657,0.51155757,100220.0,100210.0,0.00029054]
[1737995820047,0.51355757,100220.0,100210.0,0.00029054]
[1737995820253,0.51155757,100220.0,100210.0,0.00029054]
[1737995820485,0.67155755,100220.0,100210.0,0.00029054]
[1737995820690,0.73717114,100220.0,100210.0,0.00528638]
[1737995820961,0.74217114,100220.0,100210.0,0.00029054]
[1737995821073,0.80290484,100220.0,100210.0,0.00029054]
[1737995821275,0.79290486,100220.0,100210.0,0.00029054]
[1737995821532,0.86251843,100220.0,100210.0,0.00029054]
[1737995821755,0.86251843,100220.0,100210.0,0.00568605]
[1737995821940,0.82951845,100220.0,100210.0,0.00029054]
[1737995822134,0.52555757,100220.0,100210.0,0.00570568]
[1737995822549,0.52555757,100220.0,100210.0,0.00029054]
[1737995822753,0.52555757,100220.0,100210.0,0.00570536]
[1737995824794,0.16367,100220.0,100210.0,0.00570536]
[1737995825106,0.26226463,100220.0,100210.0,0.00570536]
[1737995825308,0.16367,100220.0,100210.0,0.00570536]
[1737995825554,0.014,100220.0,100210.0,0.15589005]
[1737995825708,0.16367,100220.0,100210.0,0.06771645]
[1737995825905,0.014,100220.0,100210.0,0.21690176]
[1737995826172,0.014,100220.0,100210.0,0.31424905]
[1737995826420,0.014,100220.0,100210.0,0.15539036]
[1737995826666,0.014,100220.0,100210.0,0.15588982]
[1737995826861,0.009,100220.0,100210.0,0.25323711]
[1737995827087,0.548708,100240.0,100220.0,0.149669]
[1737995827088,0.349176,100240.0,100220.0,0.149669]
[1737995827289,0.349145,100250.0,100230.0,0.14965]
[1737995827511,0.398954,100270.0,100240.0,0.548659]
[1737995827709,0.149611,100260.0,100240.0,0.149629]
[1737995827862,0.149627,100250.0,100230.0,0.49646101]
[1737995828084,0.149627,100250.0,100210.0,0.19985554]
[1737995828085,0.199532,100240.0,100210.0,0.19985554]
[1737995828287,0.548714,100240.0,100220.0,0.34972423]
[1737995828493,0.149649,100240.0,100220.0,0.44706152]
[1737995828698,0.349204,100230.0,100210.0,0.34953154]
[1737995828893,0.548764,100230.0,100210.0,0.00029054]
[1737995829215,0.349209,100230.0,100210.0,0.34954154]
[1737995829435,0.199504,100250.0,100230.0,0.349184]
[1737995829436,0.349136,100250.0,100230.0,0.349184]
[1737995829845,0.349182,100240.0,100210.0,0.26450079]
[1737995830077,0.14967,100220.0,100210.0,0.06742679]
[1737995830832,0.349249,100220.0,100210.0,0.149685]
[1737995831163,0.349217,100230.0,100220.0,0.14967]
[1737995831355,0.349177,100240.0,100220.0,0.34972926]
[1737995831497,0.351141,100250.0,100230.0,0.44652829]
[1737995831697,0.002,100250.0,100240.0,0.14964]
[1737995831899,0.00194712,100250.0,100240.0,0.33654072]
[1737995832107,0.15157212,100250.0,100240.0,0.08955343]
[1737995832364,0.149625,100250.0,100240.0,0.08955343]
[1737995832530,0.399027,100250.0,100230.0,0.149655]
[1737995832715,0.399023,100250.0,100230.0,0.24750109]
[1737995832915,0.349148,100250.0,100230.0,0.44702809]
[1737995833122,0.349068,100270.0,100250.0,0.349118]
[1737995833327,0.002,100250.0,100240.0,0.275007]
[1737995833636,0.14962,100260.0,100240.0,0.69948199]
[1737995833951,0.002,100250.0,100240.0,0.54985499]
[1737995834370,0.548553,100270.0,100250.0,0.149625]
[1737995834565,0.149611,100260.0,100250.0,0.24697229]
[1737995834960,0.00049252,100270.0,100260.0,0.149611]
[1737995835139,0.00049252,100270.0,100260.0,0.22916833]
[1737995835342,0.00049252,100270.0,100260.0,0.32651562]
[1737995836217,0.15908852,100270.0,100250.0,0.548599]
[1737995836517,0.00049252,100270.0,100260.0,0.24695829]
[1737995836716,0.00049252,100270.0,100260.0,0.68449857]
[1737995836943,0.00249252,100270.0,100260.0,0.75979857]
[1737995837150,0.00049252,100270.0,100260.0,0.78979857]
[1737995837368,0.00049252,100270.0,100260.0,0.87714586]
[1737995837773,0.00049252,100270.0,100260.0,0.89455867]
[1737995837984,0.00049252,100270.0,100260.0,0.86155867]
[1737995838187,0.00049252,100270.0,100260.0,0.57701839]
[1737995838388,0.00149252,100270.0,100260.0,0.58001839]